Cogmind - Beta 15 @@@ ROGUE MODE // 2025.07.20 @ 15:08:48 Player: amhumam Result: Destroyed by S-27 Virus with Autogun Performance ------------- Evolutions (5) 2500 Regions Visited (8) 1600 Robots Destroyed (42) 210 Value Destroyed (1664) 1664 Prototype IDs (15) 300 Alien Tech Used (0) 0 Bonus (1500) 1500 TOTAL SCORE: 7774 Bonus ------- Entered Garrisons 200 Used RIF Installer 500 Registered with UFD 300 Met Optimus in HQ 500 Cogmind --------- Core Integrity 0/1000 Matter 3/300 Energy 98/100 System Corruption 16% Temperature Cool (0) Movement Core (50) Location -5/Factory Parts ------- > --- POWER (1) -------- (None) > --- PROPULSION (3) --- (None) > --- UTILITY (9) ------ Tech Extrapolator > --- WEAPON (4) ------- (None) > --- INVENTORY (5) ---- Experimental Sensor Array Experimental Signal Interpreter Scrapoid Pod Personal Teleporter v0.10 (0/15) Peak State ------------ > --- POWER ------------ Neutrino Core > --- PROPULSION ------- Compact Wheel Overtuned Huge Scrapsphere > --- UTILITY ---------- Advanced Heat Sink Huge Storage Unit Machine Analyzer Improved Signal Interpreter Improved Heavy Armor Plating Improved Hacking Suite Makeshift System Shield Tech Extrapolator > --- WEAPON ----------- Plasma Cannon Autogun Antimatter Cannon Antimatter Cannon > --- INVENTORY -------- Light Nuclear Core Compact Wheel High-capacity Matter Pod Experimental Sensor Array Experimental Signal Interpreter Improved Launcher Guidance Computer Hacking Suite Advanced Hacking Suite Authchip [Device] Improved Corruption Screen Advanced System Restoration Module Scrapoid Pod Personal Teleporter v0.10 Antimatter Cannon Antimatter Cannon Long-range Missile Launcher Smartbomb Launcher Smartbomb Launcher Improved Plasma Cutter CPS Tube CPS Tube Vortex Trap [Rating: 86] Favorites ----------- Power Light Ion Engine Engine Light Ion Engine Power Core Light Nuclear Core Reactor Fusion Reactor Propulsion Compact Wheel Treads Light Treads Wheel Compact Wheel Flight Unit Improved Surge Thruster Utility Huge Storage Unit Device Sensor Array Storage Huge Storage Unit Processor Transport Network Coupler Hackware Makeshift System Shield Protection Improved Light Armor Plating Weapon Subdweller Beam Cannon Energy Gun EM Pulse Gun Energy Cannon Subdweller Beam Cannon Ballistic Gun Autogun Ballistic Cannon Light Cannon Launcher Grenade Launcher Slashing Weapon Mining Claw Build | -11 -10 -10 -10 -7 -7 -5 -5 -5 ------- Run | Yrd Mat Min Sub Rec Scr Fac Gar Fac Slots Evolved 10 | . . . . . . 10 . . Power . | . . . . . . . . . Propulsion 1 | . . . . . . 1 . . Utility 7 | . . . . . . 7 . . Weapon 2 | . . . . . . 2 . . Parts Attached 62 | 6 5 3 8 1 7 25 7 . Power 6 | 1 . . 1 . 1 3 . . Engine 2 | 1 . . . . 1 . . . Core 3 | . . . 1 . . 2 . . Reactor 1 | . . . . . . 1 . . Propulsion 12 | 2 1 . 3 1 2 1 2 . Treads 3 | 2 1 . . . . . . . Leg . | . . . . . . . . . Wheel 7 | . . . 3 1 2 1 . . Hover . | . . . . . . . . . Flight 2 | . . . . . . . 2 . Utility 24 | 1 2 . 2 . 3 14 2 . Device 9 | . . . 1 . 2 5 1 . Storage 3 | 1 1 . 1 . . . . . Processor 4 | . 1 . . . . 3 . . Hackware 5 | . . . . . . 4 1 . Protection 3 | . . . . . 1 2 . . Artifact . | . . . . . . . . . Weapon 20 | 2 2 3 2 . 1 7 3 . Energy Gun 5 | . 1 1 . . . 3 . . Energy Cannon 4 | . . . 2 . . 1 1 . Ballistic Gun 3 | 2 . . . . . 1 . . Ballistic Cannon 5 | . 1 . . . 1 2 1 . Launcher 2 | . . 1 . . . . 1 . Special Weapon . | . . . . . . . . . Impact Weapon . | . . . . . . . . . Slashing Weapon 1 | . . 1 . . . . . . Piercing Weapon . | . . . . . . . . . Special Melee Weapon . | . . . . . . . . . Unidentified Prototypes 3 | . . . . . 1 2 . . Parts Lost 29 | . 1 1 2 1 . 8 16 . Power 5 | . . . 1 1 . 2 1 . Propulsion 7 | . . 1 1 . . 1 4 . Utility 10 | . . . . . . 2 8 . Weapon 7 | . 1 . . . . 3 3 . Highest Loss Streak 11 | . 1 1 1 1 . 3 11 . To Critical Strikes . | . . . . . . . . . Average Backups 18 | 1 6 13 18 25 23 20 8 4 Power . | . 1 2 1 1 . . . . Propulsion 1 | . . 2 2 3 1 . . . Utility 6 | . . 5 5 7 9 8 3 2 Weapon 7 | . 3 4 9 13 10 4 1 . Tool/Special . | . . . . . . . . . Unused Backups 38 | . . . 1 3 18 5 9 2 Power . | . . . . . . . . . Propulsion 2 | . . . . 1 1 . . . Utility 13 | . . . . 2 3 3 4 1 Weapon 19 | . . . 1 . 14 2 2 . Tool/Special 4 | . . . . . . . 3 1 Average Slot Usage (%) 90 | . 98 88 98 99 97 84 37 5 Engine 6 | . 14 14 4 . 12 . . . Core 3 | . . . 9 13 . 4 . . Treads 5 | . 28 16 4 . . . . . Wheel 16 | . . . 21 28 27 10 3 . Device 7 | . . . 13 14 6 9 4 . Storage 11 | . 14 14 14 14 14 5 1 . Processor 5 | . 12 14 . . . 12 7 5 Hackware 2 | . . . . . . 12 10 . Protection 2 | . . . . . 7 2 . . Energy Gun 3 | . 4 12 2 . . 6 . . Energy Cannon 11 | . . . 17 28 18 2 . . Ballistic Gun 2 | . 18 . . . . 5 1 . Ballistic Cannon 6 | . 4 14 7 . 9 6 2 . Peak Build Rating 86 | 6 9 9 17 18 32 86 69 9 Average Rating 26 | 5 7 7 12 17 20 75 36 9 On Entrance 17 | . 6 9 8 17 15 28 69 9 Naked Turns . | . . . . . . . . . Heaviest Build 136 | 11 29 29 102 102 102 136 112 . Greatest Support 40 | 40 40 40 36 36 36 36 36 3 Greatest Overweight (x) 8 | . . 1 6 6 6 8 6 . Average Overweight (x) 2 | . . . 2 2 3 4 . . Largest Inventory Capacity 25 | 8 15 15 25 25 25 25 25 5 Average Capacity 20 | 7 9 15 19 25 25 25 10 5 Most Carried 25 | 2 11 14 25 25 25 25 24 5 Average Carried 19 | 1 6 13 18 24 24 23 9 5 Final Capacity 25 | 8 15 15 25 25 25 25 5 5 Final Carried 25 | 2 11 14 25 25 25 24 5 5 Class Distribution -------------------- 79% | Mutant 6% | Hacker-Skirmisher 5% | Hacker-Scrapper 4% | Hacker-Tank Dominant Class ---------------- Mutant | -10/Materials Mutant | -10/Mines Mutant | -10/Subcaves Mutant | -7/Recycling Mutant | -7/Scraptown Hacker-Scrapper | -5/Factory Mutant | -5/Garrison Mutant | -5/Factory Resources | -11 -10 -10 -10 -7 -7 -5 -5 -5 ----------- Run | Yrd Mat Min Sub Rec Scr Fac Gar Fac Matter Collected 1826 | 222 228 202 227 . 314 507 126 . Remotely . | . . . . . . . . . Salvage Created 1311 | . 395 112 200 . 70 520 14 . Parts 73 | . 20 9 13 . 2 25 4 . Haulers Intercepted 1 | . 1 . . . . . . . Recyclers Shooed . | . . . . . . . . . Parts Field Recycled . | . . . . . . . . . Retrieved Matter . | . . . . . . . . . Parts Self-Destructed 10 | . . . 10 . . . . . Prevented . | . . . . . . . . . Kills | -11 -10 -10 -10 -7 -7 -5 -5 -5 ------- Run | Yrd Mat Min Sub Rec Scr Fac Gar Fac Combat Hostiles Destroyed 42 | . 10 7 6 . 1 14 4 . Melee 1 | . . . 1 . . . . . Guns 18 | . 10 1 . . . 7 . . Cannons 14 | . . 2 5 . 1 4 2 . AOE 8 | . . 4 . . . 2 2 . Classes Destroyed 10 | . 3 1 1 . 1 3 1 . Hauler 1 | . 1 . . . . . . . Swarmer 12 | . 3 3 1 . . 5 . . Cutter 3 | . . . . . . . 3 . Grunt 11 | . 7 3 . . . . 1 . Sentry 3 | . . . . . . 3 . . Hunter 2 | . . . . . . 2 . . Programmer 4 | . . . . . . 4 . . Subdweller 5 | . . . 5 . . . . . Scrapper 1 | . . . . . 1 . . . Assembled 1 | . . 1 . . . . . . Best Kill Streak 7 | . 7 3 2 . 1 4 3 . Combat Bots Only 7 | . 7 3 2 . 1 4 3 . Max Kills in Single Turn 2 | . 1 2 1 . 1 2 2 . Gunslinging . | . . . . . . . . . Exploded 2 | . . 2 . . . 2 2 . Melee 1 | . . . 1 . . . . . Uniques/NPCs Destroyed . | . . . . . . . . . Combat | -11 -10 -10 -10 -7 -7 -5 -5 -5 -------- Run | Yrd Mat Min Sub Rec Scr Fac Gar Fac Hostile Shots Fired 378 | . 71 20 15 9 4 128 112 19 Missed 109 | . 21 7 4 2 1 30 39 5 Hits 269 | . 50 13 11 7 3 98 73 14 Melee 22 | . . . . . . . 22 . Projectile 247 | . 50 13 11 7 3 98 51 14 AOE 3 | . . . . . . . 3 . Critical Strikes 12 | . . . . . . 5 7 . Damage Taken 5233 | . 572 173 302 53 73 1982 1880 198 Core 1248 | . 109 22 104 6 . 345 464 198 Absorbed by Shields 28 | . . . . . . . 17 11 Regen/Repaired (Parts) 20 | . . . . . . 20 . . Core Remaining (%) 51 | 100 . . . . 3 . . . Volleys Fired 151 | . 37 15 30 1 3 50 15 . Largest 4 | . 2 2 2 1 2 4 3 . Hottest 303 | . 95 95 160 80 117 303 109 . Shots Fired 323 | . 73 31 45 1 5 152 16 . Gun 163 | . 70 11 . . . 82 . . Cannon 153 | . 3 15 45 1 5 70 14 . Launcher 7 | . . 5 . . . . 2 . Special . | . . . . . . . . . Kinetic 187 | . 72 15 4 . 2 82 12 . Thermal 122 | . 1 6 41 1 3 70 . . Explosive 7 | . . 5 . . . . 2 . Electromagnetic 7 | . . 5 . . . . 2 . Robot Hit Streak 12 | . 8 4 7 . 5 12 4 . Robot Miss Streak 6 | . 2 2 1 . 1 6 4 . Penetration Max . | . . . . . . . . . Secondary Targets 3 | . 3 . . . . . . . Max Gunslinging Chain 1 | . 1 . . . . . . . Shots Hit Robots 175 | . 53 15 19 . 2 78 8 . Core Hits 75 | . 20 9 7 . 2 29 8 . Critical Kills 1 | . . . . . . 1 . . Critical Parts Destroyed . | . . . . . . . . . Critical Strikes 10 | . . 2 . . . 8 . . Burn 6 | . . . . . . 6 . . Destroy 1 | . . . . . . 1 . . Blast 2 | . . 1 . . . 1 . . Corrupt 1 | . . 1 . . . . . . Melee Attacks 2 | . . 2 . . . . . . Impact . | . . . . . . . . . Slashing 2 | . . 2 . . . . . . Piercing . | . . . . . . . . . Sneak Attacks . | . . . . . . . . . Combat Hostiles . | . . . . . . . . . Follow-up Attacks . | . . . . . . . . . Damage Inflicted 4280 | . 544 372 324 . 58 2310 672 . Guns 1614 | . 544 56 . . . 1014 . . Cannons 1872 | . . 131 313 . 58 1111 259 . Explosions 777 | . . 185 . . . 185 407 . Melee . | . . . . . . . . . Ramming 17 | . . . 11 . . . 6 . Kinetic 2107 | . 529 131 33 . 32 1148 234 . Thermal 1509 | . 15 26 280 . 26 1162 . . Explosive 592 | . . 185 . . . . 407 . Electromagnetic 55 | . . 30 . . . . 25 . Impact . | . . . . . . . . . Slashing . | . . . . . . . . . Piercing . | . . . . . . . . . Highest Corruption 18 | . 2 2 2 2 . 6 18 16 Average Corruption 3 | . 2 2 2 2 . 2 13 16 Corruption Purged 7 | . . . . . . 5 2 . Corruption Blocked . | . . . . . . . . . Effects 76 | . 11 10 17 9 . 8 18 3 Message Errors 15 | . 2 2 5 4 . 1 1 . Matter Fused 18 | . 2 2 5 1 . 2 5 1 Heat Flow Errors 10 | . 1 2 1 2 . 1 3 . Energy Discharges 11 | . 2 1 2 1 . 2 2 1 Parts Rejected 1 | . . . . . . . 1 . Parts Fused 1 | . 1 . . . . . . . Data Loss (minor) 8 | . 2 2 1 1 . 1 1 . Data Loss (major) 1 | . . . . . . . 1 . Misfires 4 | . . 1 2 . . 1 . . Alerts 2 | . . . 1 . . . 1 . Misdirections 3 | . . . . . . . 2 1 Weapon Failures 2 | . 1 . . . . . 1 . Overload Shots . | . . . . . . . . . Overflow Damage 175 | . . 17 . . . 124 34 . Projectiles 105 | . . . . . . 73 32 . Explosions 70 | . . 17 . . . 51 2 . Melee . | . . . . . . . . . Knockbacks 14 | . . 2 . . 2 9 1 . Impact . | . . . . . . . . . Kinetic 13 | . . 2 . . 2 8 1 . Secondary 1 | . . . . . . 1 . . Self-Inflicted Damage 359 | . . 30 5 . . 252 72 . Shots 5 | . . 1 . . . 3 1 . Rammed 2 | . . . 1 . . . 1 . Targets Rammed 2 | . . . 1 . . . 1 . Kicked . | . . . . . . . . . Crushed . | . . . . . . . . . Highest Temperature 579 | . 225 253 276 240 114 579 256 . Average Temperature 119 | . 45 70 67 109 52 200 116 . Received Heat Transfer 967 | . 282 97 12 12 36 153 375 . Effects 14 | . . 1 . . . 13 . . Shutdowns 5 | . . . . . . 5 . . Energy Bleed 1 | . . . . . . 1 . . Interference 5 | . . 1 . . . 4 . . Matter Decay 1 | . . . . . . 1 . . Short Circuit 1 | . . . . . . 1 . . Damage (minor) 1 | . . . . . . 1 . . Siege Activations . | . . . . . . . . . Martial Activations . | . . . . . . . . . Shielding Activations . | . . . . . . . . . Robots Disrupted . | . . . . . . . . . Combat Hostiles . | . . . . . . . . . Robots Corrupted . | . . . . . . . . . Combat Hostiles . | . . . . . . . . . Parts Fried . | . . . . . . . . . Impact Corruptions . | . . . . . . . . . Robots Melted 1 | . . . . . . 1 . . Combat Hostiles 1 | . . . . . . 1 . . Parts Melted 7 | . . . . . 1 6 . . Heat Transferred 2891 | . 37 74 370 . 25 2385 . . Parts Sabotaged . | . . . . . . . . . Parts Stolen . | . . . . . . . . . Parts Stripped . | . . . . . . . . . Power Chain Reactions . | . . . . . . . . . Alert | -11 -10 -10 -10 -7 -7 -5 -5 -5 ------- Run | Yrd Mat Min Sub Rec Scr Fac Gar Fac Maximum Alert Level 1 | . . . . . . . 1 . Low Security (%) 99 | 100 100 100 . 100 . 100 93 100 Level 1 . | . . . . . . . 6 . Level 2 . | . . . . . . . . . Level 3 . | . . . . . . . . . Level 4 . | . . . . . . . . . Level 5 . | . . . . . . . . . High Security . | . . . . . . . . . Max Security . | . . . . . . . . . Peak Influence 298 | . 151 125 . 30 . 193 298 161 Initial 145 | . . 24 . 16 . . 136 145 Average 53 | . 49 36 . 4 . 58 178 147 Influence Increases 1691 | . 262 191 35 137 . 733 302 31 Destroy 0b10 Robot/C 700 | . 200 120 20 . . 280 80 . Destroy 0b10 Robot/NC 5 | . 5 . . . . . . . Destroy Leader 132 | . 42 20 . . . 70 . . Trap Triggered on 0b10 10 | . . . . . . . 10 . Successful Hack 123 | . . . . 31 . 68 8 16 Select Force Hacks 90 | . . . . 90 . . . . Disable Machine 105 | . . 15 . . . 90 . . Destroy Structure 181 | . . 36 . 1 . 90 54 . Partial Spotted 45 | . . . . . . 15 30 . Lose Combat Pursuer 300 | . 15 . 15 15 . 120 120 15 Influence Decreases 1545 | . 199 254 . 157 15 538 219 163 Entered New Map 265 | . . 39 . 19 15 . 59 133 Time Decay 921 | . 189 205 . 137 . 360 . 30 Lost Part 246 | . 10 10 . 1 . 65 160 . Purge Threat 113 | . . . . . . 113 . . Squads Dispatched 11 | . 2 . . . . 8 . 1 Investigation 7 | . 2 . . . . 4 . 1 Extermination 2 | . . . . . . 2 . . Reinforcement 2 | . . . . . . 2 . . Assault . | . . . . . . . . . Garrison . | . . . . . . . . . Intercept . | . . . . . . . . . Searches Triggered . | . . . . . . . . . Construction Impeded . | . . . . . . . . . Haulers Reinforced . | . . . . . . . . . Active Scanning Responses . | . . . . . . . . . Cargo Convoy Interrupts . | . . . . . . . . . Stealth | -11 -10 -10 -10 -7 -7 -5 -5 -5 --------- Run | Yrd Mat Min Sub Rec Scr Fac Gar Fac Distress Signals 2 | . 1 . . . . 1 . . Communications Jammed . | . . . . . . . . . Distress Signals . | . . . . . . . . . Times Spotted 90 | . 15 7 12 1 3 28 20 4 Peak Tracking Total 8 | . 7 3 6 1 1 7 8 4 Tactical Retreats 11 | . 1 . 1 1 . 4 3 1 Traps | -11 -10 -10 -10 -7 -7 -5 -5 -5 ------- Run | Yrd Mat Min Sub Rec Scr Fac Gar Fac Traps Triggered 15 | . 3 . 3 . . 3 5 1 Indirectly . | . . . . . . . . . Trap Hack Attempts . | . . . . . . . . . Triggered . | . . . . . . . . . Disarmed . | . . . . . . . . . Reprogrammed . | . . . . . . . . . Reused 1 | . . . . . . . 1 . Traps Extracted . | . . . . . . . . . Installed 1 | . . . . . . . 1 . Triggered 1 | . . . . . . . 1 . Most Traps Carried 1 | . . . . . 1 1 1 . Machines | -11 -10 -10 -10 -7 -7 -5 -5 -5 ---------- Run | Yrd Mat Min Sub Rec Scr Fac Gar Fac Machines Disabled 8 | . . 1 . . 1 6 . . Max in Single Turn 4 | . . 1 . . 1 4 . . Machines Repaired . | . . . . . . . . . Machines Dismantled . | . . . . . . . . . Machines Sabotaged . | . . . . . . . . . Overloaded Fab Kills . | . . . . . . . . . Hacking | -11 -10 -10 -10 -7 -7 -5 -5 -5 --------- Run | Yrd Mat Min Sub Rec Scr Fac Gar Fac Machines Accessed 24 | . 2 . . 7 2 10 1 2 Terminals 14 | . 2 . . 4 . 6 1 1 Fabricators . | . . . . . . . . . Repair Stations . | . . . . . . . . . Recycling Units 7 | . . . . 3 . 3 . 1 Scanalyzers . | . . . . . . . . . Garrison Access 1 | . . . . . . 1 . . Total Hacks 55 | . 3 . . 15 6 25 2 4 Successful 31 | . . . . 5 6 17 1 2 Failed 24 | . 3 . . 10 . 8 1 2 Catastrophic 7 | . 1 . . 1 . 4 . 1 Database Lockouts . | . . . . . . . . . Manual 32 | . 3 . . 8 . 18 . 3 Terminals 37 | . 3 . . 10 . 19 2 3 Fabricators . | . . . . . . . . . Repair Stations . | . . . . . . . . . Recycling Units 11 | . . . . 5 . 5 . 1 Scanalyzers . | . . . . . . . . . Garrison Access 1 | . . . . . . 1 . . Terminal Hacks 15 | . . . . 1 6 7 1 . Record 5 | . . . . . 5 . . . Part Schematic 3 | . . . . 1 . 2 . . Alert Level 1 | . . . . . . 1 . . Unreport Threat 2 | . . . . . . 2 . . Recall Investigation 1 | . . . . . . 1 . . Registered Components 1 | . . . . . . 1 . . Garrison Registry 1 | . . . . . . . 1 . Proto ID Catalog 1 | . . . . . 1 . . . Fabricator Hacks . | . . . . . . . . . Repair Station Hacks . | . . . . . . . . . Recycling Unit Hacks 1 | . . . . . . 1 . . Retrieve Matter 1 | . . . . . . 1 . . Scanalyzer . | . . . . . . . . . Garrison Access Hacks 1 | . . . . . . 1 . . Unlock Access 1 | . . . . . . 1 . . Unauthorized Hacks 14 | . . . . 4 . 8 . 2 Terminals 7 | . . . . 1 . 5 . 1 Botnet 7 | . . . . 1 . 5 . 1 Fabricators . | . . . . . . . . . Repair Stations . | . . . . . . . . . Recycling Units 7 | . . . . 3 . 3 . 1 Tunnel 3 | . . . . 3 . . . . Fedlink 3 | . . . . . . 3 . . Scrapoids 1 | . . . . . . . . 1 Scanalyzers . | . . . . . . . . . Garrison Access . | . . . . . . . . . Data Cores Recovered . | . . . . . . . . . Used . | . . . . . . . . . Hacking Detections 14 | . 2 . . 4 . 6 1 1 Full Trace Events 2 | . . . . 2 . . . . Feedback Events . | . . . . . . . . . Feedback Blocked . | . . . . . . . . . Robot Schematics Acquired . | . . . . . . . . . Robots Built . | . . . . . . . . . Authchips . | . . . . . . . . . Time . | . . . . . . . . . Total Robot Build Rating . | . . . . . . . . . Part Schematics Acquired 9 | . . . . 1 . 8 . . Parts Built . | . . . . . . . . . Authchips . | . . . . . . . . . Time . | . . . . . . . . . Total Part Build Rating . | . . . . . . . . . Parts Repaired . | . . . . . . . . . Time . | . . . . . . . . . Parts Recycled . | . . . . . . . . . Recycled Matter . | . . . . . . . . . Retrieved Matter . | . . . . . . . . . Retrieved Components . | . . . . . . . . . Parts Scanalyzed . | . . . . . . . . . Part Schematics Acquired . | . . . . . . . . . Parts Damaged . | . . . . . . . . . Bothacking | -11 -10 -10 -10 -7 -7 -5 -5 -5 ------------ Run | Yrd Mat Min Sub Rec Scr Fac Gar Fac Used RIF Installer 1 | . . . . . . . 1 . Robots Hacked . | . . . . . . . . . Non-combat . | . . . . . . . . . Combat . | . . . . . . . . . Robot Hacks Applied . | . . . . . . . . . Relay Couplers Released . | . . . . . . . . . Fabnet Peak Effective % . | . . . . . . . . . Robots Rewired . | . . . . . . . . . Allies Hacked . | . . . . . . . . . Hacks Repelled . | . . . . . . . . . Allies | -11 -10 -10 -10 -7 -7 -5 -5 -5 -------- Run | Yrd Mat Min Sub Rec Scr Fac Gar Fac Total Allies . | . . . . . . . . . Largest Group . | . . . . . . . . . Highest-Rated Group . | . . . . . . . . . Highest-Rated Ally . | . . . . . . . . . Total Orders . | . . . . . . . . . Ally Attacks . | . . . . . . . . . Total Damage . | . . . . . . . . . Kills . | . . . . . . . . . Allies Corrupted . | . . . . . . . . . Allies Melted 2 | . . . . . 2 . . . Intel | -11 -10 -10 -10 -7 -7 -5 -5 -5 ------- Run | Yrd Mat Min Sub Rec Scr Fac Gar Fac Active Infowar (turns) 5282 | . 598 420 1192 908 878 1202 84 . Sensors 3075 | . . . 1192 908 878 97 . . T.N.C. 1018 | . 598 420 . . . . . . Machine Analysis 1286 | . . . . . . 1202 84 . Robot Analysis Total . | . . . . . . . . . Derelict Logs Recovered 7 | . . 1 1 . 5 . . . Drone Launches . | . . . . . . . . . Drone Recoveries . | . . . . . . . . . Exploration | -11 -10 -10 -10 -7 -7 -5 -5 -5 ------------- Run | Yrd Mat Min Sub Rec Scr Fac Gar Fac Turns Passed 7342 | 78 680 847 1194 908 1922 1227 417 69 Spaces Moved 4581 | 43 333 355 875 691 1171 659 344 110 Core 315 | 1 . . . . . . 204 110 Treads 730 | 42 333 355 . . . . . . Legs . | . . . . . . . . . Wheels 3435 | . . . 875 691 1169 659 41 . Hover . | . . . . . . . . . Flight 98 | . . . . . . . 98 . Fastest Speed 30 | 50 160 160 105 129 120 109 30 50 Average Speed 139 | 157 160 221 122 129 154 148 55 50 Slowest Speed 240 | 160 160 240 190 190 190 220 190 50 Overloaded Moves . | . . . . . . . . . Propulsion Burnouts . | . . . . . . . . . Robots Hopped . | . . . . . . . . . Potential Cave-ins 4 | . . . . . . . 4 . Cave-ins Triggered 1 | . . . . . . . 1 . Teleports 3 | . . . . . 2 . 1 . Exploration Rate (%) 47 | 4 59 74 53 90 82 15 47 2 Regions Visited 8 Branch Regions 4 Pre-discovered Areas 6 | . . . . 3 2 1 . . Known Exits Taken 3 | . . 1 1 . . 1 . . Unknown Exits Taken 4 | 1 1 . . 1 1 . . . Scrap Searched 19 | . . 1 17 . 1 . . . Spaces Dug 12 | . . 1 2 1 . 8 . . Terrain Destroyed 140 | . . 40 4 1 1 50 44 . Melee 1 | . . 1 . . . . . . Projectile 37 | . . . 4 1 1 26 5 . AOE 102 | . . 39 . . . 24 39 . Terrain Rammed . | . . . . . . . . . Walls Destroyed . | . . . . . . . . . Machines Disabled . | . . . . . . . . . Actions | -11 -10 -10 -10 -7 -7 -5 -5 -5 --------- Run | Yrd Mat Min Sub Rec Scr Fac Gar Fac Total 5304 | 50 414 379 949 701 1292 842 553 124 Wait 252 | . 27 . 7 3 53 48 114 . Move 4575 | 42 332 354 875 690 1170 659 343 110 Hop . | . . . . . . . . . Pick Up 90 | 2 10 3 20 3 26 22 4 . Fast Attach 30 | 6 2 . 2 . 2 13 5 . Attach 31 | . 1 . 3 . 4 16 7 . Detach 4 | . . . . . 1 2 1 . Swap 20 | . 2 5 4 1 3 5 . . Drop 69 | . 3 . 8 3 30 19 6 . Fire 151 | . 37 15 30 1 3 50 15 . Melee 2 | . . 2 . . . . . . Ram 1 | . . . . . . . 1 . Kick . | . . . . . . . . . Crush . | . . . . . . . . . Escape Stasis 78 | . . . . . . 8 56 14 Rewire . | . . . . . . . . . Trap 1 | . . . . . . . 1 . Miscellaneous . | . . . . . . . . . Route ------- -11/Scrapyard -10/Materials (discovered 3 exits: [*Mat x2] / [*Min]) -10/Mines (discovered 2 exits: [*Mat] / *Sub) -10/Subcaves -7/Recycling (discovered 2 exits: *Fac / *Scr) -7/Scraptown (discovered 2 exits: *Fac x2) -5/Factory (discovered 3 exits: *Fac x2 / Gar) -5/Garrison (discovered 3 exits: *Fac x3) -5/Factory History --------- Turn | Location | Event 16 | -11/Scrapyard | Discovered new exit (range 15) 79 | -11/Scrapyard | Entered Materials 172 | -10/Materials | Discovered new exit (range 16) 315 | -10/Materials | Build established: Mutant 570 | -10/Materials | Destroyed 7 combat bots 571 | -10/Materials | Discovered new exit (range 3) 673 | -10/Materials | Discovered new exit (range 12) 759 | -10/Materials | Entered Mines 768 | -10/Mines | Met a Derelict bent on vengeance 769 | -10/Mines | Excavation squad dispatched 769 | -10/Mines | A large section of the Mines collapsed 835 | -10/Mines | Core integrity fell below 50% 998 | -10/Mines | Discovered new exit (range 11) 1036 | -10/Mines | Identified exit to Subcaves 1142 | -10/Mines | Found a damaged Exp. Sensor Array with a note attached 1146 | -10/Mines | Found Prototype Device 1606 | -10/Mines | Entered Subcaves 1607 | -10/Subcaves | Approached by a straggling Scientist 2138 | -10/Subcaves | Identified exit to Recycling 2205 | -10/Subcaves | Disturbed a concealed Subdweller 2214 | -10/Subcaves | Disturbed a concealed Subdweller 2449 | -10/Subcaves | Disturbed a concealed Subdweller 2581 | -10/Subcaves | Disturbed a concealed Subdweller 2608 | -10/Subcaves | Core integrity fell below 20% 2800 | -10/Subcaves | Entered Recycling 3238 | -7/Recycling | Discovered new exit (range 5) 3679 | -7/Recycling | Scanned before Scraplab entrance 3697 | -7/Recycling | Entered Scraplab 3707 | -7/Recycling | Discovered new exit (range 2) 3708 | -7/Recycling | Entered Scraptown 3708 | -7/Scraptown | System corruption cleaned by C-Scrubber 3813 | -7/Scraptown | Scanned Subdweller tech in exchange for log data 3816 | -7/Scraptown | Learned location of Zion (-7) 3817 | -7/Scraptown | Learned Research emergency access door positions 3818 | -7/Scraptown | Learned Research interactive machine intel 3821 | -7/Scraptown | Learned 8 Factory zone layouts 3843 | -7/Scraptown | Discovered new exit (range 3) 3888 | -7/Scraptown | Heard Great Nut preacher, LISTEN AND RECITE! 4179 | -7/Scraptown | Visited TADAMA 4198 | -7/Scraptown | Visited The Evicted 4233 | -7/Scraptown | Visited Cyclists 4252 | -7/Scraptown | Visited Assassins FH 4287 | -7/Scraptown | Visited CR-KLE's Repair Center 4291 | -7/Scraptown | Identified Exp. Sensor Array 4347 | -7/Scraptown | Visited UFD Registry 4347 | -7/Scraptown | Registered with UFD as "Nukecore" 4413 | -7/Scraptown | Visited Sword Containment 4440 | -7/Scraptown | Visited Scrapoid Pod Storage 4466 | -7/Scraptown | Visited Science Guys 4658 | -7/Scraptown | Visited Scrap Suit Storage 4701 | -7/Scraptown | Visited Junk Repository 4726 | -7/Scraptown | Visited Abandonware Association 4747 | -7/Scraptown | Learned abandonware demo "ERRANTS.EXE" 4747 | -7/Scraptown | Learned abandonware demo "TRNCOAT.EXE" 4789 | -7/Scraptown | Visited Junk Repository 4853 | -7/Scraptown | Visited Scrapoid Research Area 4891 | -7/Scraptown | Visited Modified Component R&D 5050 | -7/Scraptown | Visited Infowarlord's Domain 5062 | -7/Scraptown | Found Exp. Signal Interpreter 5102 | -7/Scraptown | Found Scrap Suit 5163 | -7/Scraptown | Found Scrapoid Pod 5429 | -7/Scraptown | Met Optimus 5429 | -7/Scraptown | Accepted into 0bPrime 5496 | -7/Scraptown | Discovered new exit (range 3) 5499 | -7/Scraptown | Civil war broke out across Scraptown 5591 | -7/Scraptown | Found Personal Teleporter v0.10 5614 | -7/Scraptown | Lost 7 allies 5630 | -7/Scraptown | Entered Factory 5630 | -5/Factory | Evolved 10 slots: Propulsion x1, Utility x7, Weapon x2 5730 | -5/Factory | Lost 3 parts (1p1u1w) 5912 | -5/Factory | Loaded intel: 8 recycling unit locations 6074 | -5/Factory | Build established: Hacker-Scrapper 6320 | -5/Factory | Discovered new exit (range 12) 6330 | -5/Factory | Tech Extrapolator generated special schematic: Deep Structural Scanner 6395 | -5/Factory | Identified exit to Factory 6538 | -5/Factory | Discovered exit to Factory (range 4) 6567 | -5/Factory | Tech Extrapolator generated special schematic: Machine Rigger 6642 | -5/Factory | Build established: Hacker-Tank 6668 | -5/Factory | Learned location of Protoforge (-3) 6800 | -5/Factory | Lost 3 parts (1p1n1w) 6857 | -5/Factory | Identified exit to Garrison 6857 | -5/Factory | Entered Garrison 6908 | -5/Garrison | Discovered new exit (range 65) 6908 | -5/Garrison | Discovered new exit (range 75) 6908 | -5/Garrison | Discovered new exit (range 52) 6942 | -5/Garrison | System corruption reached 10% 6943 | -5/Garrison | Crushed by falling debris 7015 | -5/Garrison | Core integrity fell below 50% 7037 | -5/Garrison | Lost 11 parts (3n5u3w) 7137 | -5/Garrison | Triggered checkpoint 7137 | -5/Garrison | Triggered checkpoint 7149 | -5/Garrison | Triggered checkpoint 7185 | -5/Garrison | Installed Relay Interface Framework 7273 | -5/Garrison | Core integrity fell below 20% 7274 | -5/Garrison | Entered Factory 7343 | -5/Factory | Destroyed by S-27 Virus with Autogun Last Messages --------------- 07322_ Field strength at 46. 07323_ Field strength at 40. 07324_ Field strength at 34. 07325_ Field strength at 24. 07326_ ALERT: All DSF locations entering lockdown mode. 07326_ Field strength at 14. 07327_ Field strength at 8. 07328_ Field strength at 2. 07329_ Stasis field depleted. 07331_ System corrupted: Matter fused (-9). 07333_ Connecting with Recycling Unit... >>Force(Scrapoids) UFD!MEMBER UFD!ALLOCATE<53-3=50> UFD!ETA<14> UFD!SANITIZING UFD!... 07333_ ALERT: Suspicious activity at Recycling Unit F008. Dispatching Investigation squad. Map ----- +----------------------------------------------------+ | ???????????????????????????????????????? | | ???????????????????????????????????????? | | ???????????????????????????????????????? | | ???????????????????????????????????????? | | ???????????????????????????????????????? | | ???????????????????????????????????????? | | ???????????????????????????????????????? | | ???????????????????????????????????????? | | ???????????????????????? ????????????? | | ??????????????????????? ??????????? | | ??????????????????????? #?????????? | | ??????????????????????? +?????????? | | ??????????????????????? #?????????? | | ??????????????????????? #?????????? | | ???????????????????????#u #?? ??????? | | ???????????????????????# #? ???????? | | ???????????????????????# # ???????? | | ???????????????????????# # ????????? | | ???????????????????????# +?????????? | | ???????????????????????# #?????????? | | ???????????????????????# #?????????? | | ???????????????????????# #?????????? | | ?????????????########### #?????????? | | ?????????????# # #?????????? | | ?????????????# """"" # #?????????? | | ?????????????# ""Y"" #s@ #?????????? | | ?????????????# ss #?????????? | | ?????????????# """ """ #s #?????????? | | ?????????????# """ """ # #?????????? | | ?????????????# """ """ # #?????????? | | ?????????????# # #?????????? | | ?????????????########### #?????????? | | ???????????????????????# #?????????? | | ???????????????????????# #?????????? | | ???????????????????????# #?????????? | | ???????????????????????# #?????????? | | ???????????????????????# #?????????? | | ???????????????????????# #?????????? | | ???????????????????????# #?????????? | | ???????????????????????# #?????????? | | ??????????????########## #?????????? | | ??????????????# ! # #?????????? | | ??????????????# # ########### | | ??????????????# """""" # # # | | ??????????????# """""" # # !# | | ??????????????? """""" # # """ ! # | | ??????????????# """""" # # """ # | | ??????????????# + + """ "" # | | ??????????????# # # """# | | ??????????????# # # S"# | +----------------------------------------------------+ Best States ------------- Heat Dissipation 78 Energy Generation 19 Energy Capacity 315 Matter Stores 300 Matter Capacity 300 Sight Range 16 Robot Scan Range 20 Terrain Scan Density 10 Armor Coverage 600 Evasion (%) 64 Recoil Reduction 2 Offensive Hacking 22 Defensive Hacking 11 Authchip Count 1 Item Schematics ----------------- Thunder Leg | -7/Recycling | Hacked Q-thruster | -5/Factory | Hacked Micro-nuke Launcher | -5/Factory | Hacked 0b10 Decoder Chip [Skirmisher] | -5/Factory | Extrapolated Deep Structural Scanner | -5/Factory | Extrapolated Mak. Hacking Suite | -5/Factory | Extrapolated Mak. System Restoration Module | -5/Factory | Extrapolated Machine Rigger | -5/Factory | Extrapolated Ripper | -5/Factory | Extrapolated Robot Schematics ------------------ None Fabricated ------------ Nothing Repaired ---------- Nothing Alien Tech Used ----------------- None Achievements -------------- Fist Fight Challenges ------------ None Game ------ Seed ClaymoresFlakRipper Manual? 0 Play Time 02:00:14 Cumulative 256.1 hours Start 2025.07.18 @ 01:13:26 End 2025.07.20 @ 15:08:48 Sessions 6 Manual Loads 0 Difficulty Rogue Special Mode None Game No. 224 Rogue 224 Adventurer 0 Explorer 0 Win Type - Total 1 Types 1/0/0/0/0/0/0/0/0/0 Lore% 76 Gallery% 63 Achievement% 55 Wizard Run 0 Options --------- Layout 1 ASCII 0 Keyboard 0 Movement Mouse Keybinds 0 Fullscreen 1 Font 24/Smallcaps Map View 50x35 Zoom Use 3% Tactical HUD 1 Map Filters NONE Filters NONE Steam 1 RUN: a4401299-11fa-4229-981a-c068d861030a